Cogmind - Beta 12 @@@ ROGUE MODE // 2023.04.28 @ 19:30:35 Player: Mr Goldstein Result: Self-destructed Performance ------------- Evolutions (1) 500 Regions Visited (4) 800 Robots Destroyed (4) 20 Value Destroyed (81) 81 Prototype IDs (0) 0 Alien Tech Used (0) 0 Bonus (200) 200 TOTAL SCORE: 1601 Bonus ------- Pacifist 200 Cogmind --------- Core Integrity 284/400 Matter 222/300 Energy 99/100 System Corruption 0% Temperature Cool (0) Movement Core (50) Location -9/Mines Parts ------- > --- POWER (1) -------- (None) > --- PROPULSION (4) --- Light Treads Light Treads Light Treads > --- UTILITY (2) ------ (None) > --- WEAPON (2) ------- Shotgun > --- INVENTORY (5) ---- Light Ion Engine Signal Interpreter Propulsion Shielding Light Armor Plating Peak State ------------ > --- POWER ------------ (None) > --- PROPULSION ------- Light Treads Light Treads Light Treads Light Treads > --- UTILITY ---------- (None) > --- WEAPON ----------- Shotgun > --- INVENTORY -------- Light Ion Engine Signal Interpreter [Rating: 6] Favorites ----------- Power None Propulsion Light Treads Treads Light Treads Utility None Weapon Shotgun Ballistic Gun Shotgun Build | -11 -10 -10 -9 -9 ------- Run | Jun Mat Min Mat Min Slots Evolved 2 | . . . 2 . Power . | . . . . . Propulsion 2 | . . . 2 . Utility . | . . . . . Weapon . | . . . . . Parts Attached 6 | 2 . . 2 2 Power . | . . . . . Engine . | . . . . . Core . | . . . . . Reactor . | . . . . . Propulsion 5 | 2 . . 1 2 Treads 5 | 2 . . 1 2 Leg . | . . . . . Wheel . | . . . . . Hover . | . . . . . Flight . | . . . . . Utility . | . . . . . Device . | . . . . . Storage . | . . . . . Processor . | . . . . . Hackware . | . . . . . Protection . | . . . . . Artifact . | . . . . . Weapon 1 | . . . 1 . Energy Gun . | . . . . . Energy Cannon . | . . . . . Ballistic Gun 1 | . . . 1 . Ballistic Cannon . | . . . . . Launcher . | . . . . . Special Weapon . | . . . . . Impact Weapon . | . . . . . Slashing Weapon . | . . . . . Piercing Weapon . | . . . . . Special Melee Weapon . | . . . . . Unidentified Prototypes . | . . . . . Parts Lost 2 | . . . 1 1 Power . | . . . . . Propulsion 2 | . . . 1 1 Utility . | . . . . . Weapon . | . . . . . Highest Loss Streak 1 | . . . 1 1 To Critical Strikes . | . . . . . Average Slot Usage (%) 33 | . 28 28 30 44 Treads 27 | . 28 28 23 33 Ballistic Gun 5 | . . . 6 11 Naked Turns . | . . . . . Heaviest Build 3 | . . . 3 3 Greatest Support 40 | 3 3 3 40 3 Greatest Overweight (x) . | . . . . . Average Overweight (x) . | . . . . . Largest Inventory Capacity 5 | 5 5 5 5 5 Average Capacity 5 | 5 5 5 5 5 Most Carried 4 | 2 1 1 2 4 Average Carried 1 | . 1 1 1 3 Final Capacity 5 | 5 5 5 5 5 Final Carried 4 | 1 1 1 2 4 Class Distribution -------------------- 100% | Mutant Dominant Class ---------------- Mutant | -10/Materials Mutant | -10/Mines Mutant | -9/Materials Mutant | -9/Mines Resources | -11 -10 -10 -9 -9 ----------- Run | Jun Mat Min Mat Min Matter Collected 247 | 220 . . 23 4 Remotely . | . . . . . Salvage Created 91 | . . . 91 . Parts 8 | . . . 8 . Haulers Intercepted . | . . . . . Recyclers Shooed . | . . . . . Parts Field Recycled . | . . . . . Retrieved Matter . | . . . . . Parts Self-Destructed . | . . . . . Prevented . | . . . . . Kills | -11 -10 -10 -9 -9 ------- Run | Jun Mat Min Mat Min Combat Hostiles Destroyed 3 | . . . 3 . Guns 3 | . . . 3 . Classes Destroyed 3 | . . . 3 . Watcher 1 | . . . 1 . Swarmer 2 | . . . 2 . Sentry 1 | . . . 1 . Best Kill Streak 4 | . . . 4 . Combat Bots Only 2 | . . . 2 . Max Kills in Single Turn 1 | . . . 1 . Gunslinging . | . . . . . Exploded . | . . . . . Melee . | . . . . . Uniques/NPCs Destroyed . | . . . . . Combat | -11 -10 -10 -9 -9 -------- Run | Jun Mat Min Mat Min Damage Taken 733 | . 118 56 367 192 Core 205 | . 57 32 95 21 Absorbed by Shields . | . . . . . Core Remaining (%) 82 | 100 . 64 . . Volleys Fired 21 | . . . 21 . Largest 1 | . . . 1 . Hottest 23 | . . . 23 . Shots Fired 21 | . . . 21 . Gun 21 | . . . 21 . Cannon . | . . . . . Launcher . | . . . . . Special . | . . . . . Kinetic 21 | . . . 21 . Thermal . | . . . . . Explosive . | . . . . . Electromagnetic . | . . . . . Robot Hit Streak 3 | . . . 3 . Robot Miss Streak 7 | . . . 7 . Penetration Max . | . . . . . Secondary Targets . | . . . . . Shots Hit Robots 14 | . . . 14 . Core Hits 7 | . . . 6 1 Critical Kills . | . . . . . Critical Parts Destroyed . | . . . . . Critical Strikes . | . . . . . Melee Attacks . | . . . . . Impact . | . . . . . Slashing . | . . . . . Piercing . | . . . . . Sneak Attacks . | . . . . . Combat Hostiles . | . . . . . Follow-up Attacks . | . . . . . Damage Inflicted 210 | . . . 193 17 Guns 183 | . . . 183 . Cannons . | . . . . . Explosions . | . . . . . Melee . | . . . . . Ramming 27 | . . . 10 17 Kinetic 183 | . . . 183 . Thermal . | . . . . . Explosive . | . . . . . Electromagnetic . | . . . . . Impact . | . . . . . Slashing . | . . . . . Piercing . | . . . . . Highest Corruption 2 | . 2 2 . . Average Corruption 2 | . 2 2 . . Corruption Purged . | . . . . . Corruption Blocked . | . . . . . Effects 2 | . 1 1 . . Message Errors 1 | . 1 . . . Heat Flow Errors 1 | . . 1 . . Overload Shots . | . . . . . Overflow Damage . | . . . . . Projectiles . | . . . . . Explosions . | . . . . . Melee . | . . . . . Knockbacks . | . . . . . Impact . | . . . . . Kinetic . | . . . . . Secondary . | . . . . . Self-Inflicted Damage 12 | . . . 4 8 Shots . | . . . . . Rammed 4 | . . . 2 2 Targets Rammed 4 | . . . 2 2 Kicked . | . . . . . Crushed . | . . . . . Highest Temperature 120 | . . 120 . . Average Temperature 64 | . . 64 . . Received Heat Transfer 158 | . 6 30 102 20 Siege Activations . | . . . . . Robots Corrupted . | . . . . . Combat Hostiles . | . . . . . Parts Fried . | . . . . . Impact Corruptions . | . . . . . Robots Melted . | . . . . . Combat Hostiles . | . . . . . Parts Melted . | . . . . . Heat Transferred . | . . . . . Parts Sabotaged . | . . . . . Parts Stolen . | . . . . . Parts Stripped . | . . . . . Power Chain Reactions . | . . . . . Missiles Intercepted . | . . . . . Alert | -11 -10 -10 -9 -9 ------- Run | Jun Mat Min Mat Min Peak Influence 228 | . 45 17 228 104 Initial 84 | . . 17 6 84 Average 65 | . 17 17 94 87 Maximum Alert Level 1 | . . . 1 . Low Security (%) 95 | 100 100 100 89 100 Level 1 4 | . . . 10 . Level 2 . | . . . . . Level 3 . | . . . . . Level 4 . | . . . . . Level 5 . | . . . . . High Security . | . . . . . Max Security . | . . . . . Squads Dispatched 2 | . 1 . 1 . Investigation . | . . . . . Extermination . | . . . . . Reinforcement 2 | . 1 . 1 . Assault . | . . . . . Garrison . | . . . . . Intercept . | . . . . . Searches Triggered . | . . . . . Construction Impeded . | . . . . . Haulers Reinforced . | . . . . . Active Scanning Responses . | . . . . . Cargo Convoy Interrupts . | . . . . . Stealth | -11 -10 -10 -9 -9 --------- Run | Jun Mat Min Mat Min Distress Signals . | . . . . . Communications Jammed . | . . . . . Distress Signals . | . . . . . Times Spotted 30 | . 8 2 10 10 Peak Tracking Total 8 | . 7 2 7 8 Tactical Retreats 3 | . 1 . 2 . Traps | -11 -10 -10 -9 -9 ------- Run | Jun Mat Min Mat Min Traps Triggered 1 | . 1 . . . Indirectly . | . . . . . Trap Hack Attempts . | . . . . . Triggered . | . . . . . Disarmed . | . . . . . Reprogrammed . | . . . . . Reused . | . . . . . Traps Extracted . | . . . . . Installed . | . . . . . Triggered . | . . . . . Machines | -11 -10 -10 -9 -9 ---------- Run | Jun Mat Min Mat Min Machines Disabled . | . . . . . Max in Single Turn . | . . . . . Machines Repaired . | . . . . . Machines Sabotaged . | . . . . . Overloaded Fab Kills . | . . . . . Hacking | -11 -10 -10 -9 -9 --------- Run | Jun Mat Min Mat Min Machines Accessed . | . . . . . Terminals . | . . . . . Fabricators . | . . . . . Repair Stations . | . . . . . Recycling Units . | . . . . . Scanalyzers . | . . . . . Garrison Access . | . . . . . Total Hacks . | . . . . . Successful . | . . . . . Failed . | . . . . . Catastrophic . | . . . . . Database Lockouts . | . . . . . Manual . | . . . . . Terminals . | . . . . . Fabricators . | . . . . . Repair Stations . | . . . . . Recycling Units . | . . . . . Scanalyzers . | . . . . . Garrison Access . | . . . . . Terminal Hacks . | . . . . . Fabricator Hacks . | . . . . . Repair Station Hacks . | . . . . . Recycling Unit Hacks . | . . . . . Scanalyzer . | . . . . . Garrison Access Hacks . | . . . . . Unauthorized Hacks . | . . . . . Terminals . | . . . . . Fabricators . | . . . . . Repair Stations . | . . . . . Recycling Units . | . . . . . Scanalyzers . | . . . . . Garrison Access . | . . . . . Data Cores Recovered . | . . . . . Used . | . . . . . Hacking Detections . | . . . . . Full Trace Events . | . . . . . Feedback Events . | . . . . . Feedback Blocked . | . . . . . Robot Schematics Acquired . | . . . . . Robots Built . | . . . . . Authchips . | . . . . . Time . | . . . . . Total Robot Build Rating . | . . . . . Part Schematics Acquired . | . . . . . Parts Built . | . . . . . Authchips . | . . . . . Time . | . . . . . Total Part Build Rating . | . . . . . Parts Repaired . | . . . . . Time . | . . . . . Parts Recycled . | . . . . . Recycled Matter . | . . . . . Retrieved Matter . | . . . . . Retrieved Components . | . . . . . Parts Scanalyzed . | . . . . . Part Schematics Acquired . | . . . . . Parts Damaged . | . . . . . Bothacking | -11 -10 -10 -9 -9 ------------ Run | Jun Mat Min Mat Min Used RIF Installer . | . . . . . Robots Hacked . | . . . . . Non-combat . | . . . . . Combat . | . . . . . Robot Hacks Applied . | . . . . . Relay Couplers Released . | . . . . . Fabnet Peak Effective % . | . . . . . Robots Rewired . | . . . . . Allies Hacked . | . . . . . Hacks Repelled . | . . . . . Allies | -11 -10 -10 -9 -9 -------- Run | Jun Mat Min Mat Min Total Allies . | . . . . . Largest Group . | . . . . . Highest-Rated Group . | . . . . . Highest-Rated Ally . | . . . . . Total Orders . | . . . . . Ally Attacks . | . . . . . Total Damage . | . . . . . Kills . | . . . . . Allies Corrupted . | . . . . . Allies Melted . | . . . . . Intel | -11 -10 -10 -9 -9 ------- Run | Jun Mat Min Mat Min Robot Analysis Total . | . . . . . Derelict Logs Recovered . | . . . . . Drone Launches . | . . . . . Drone Recoveries . | . . . . . Exploration | -11 -10 -10 -9 -9 ------------- Run | Jun Mat Min Mat Min Turns Passed 283 | 22 38 34 116 73 Spaces Moved 416 | 35 75 67 126 113 Core 412 | 35 75 67 122 113 Treads 4 | . . . 4 . Legs . | . . . . . Wheels . | . . . . . Hover . | . . . . . Flight . | . . . . . Fastest Speed 50 | 50 50 50 50 50 Average Speed 51 | 50 50 50 53 50 Slowest Speed 160 | 50 50 50 160 50 Overloaded Moves . | . . . . . Propulsion Burnouts . | . . . . . Robots Hopped . | . . . . . Cave-ins Triggered . | . . . . . Exploration Rate (%) 21 | 4 19 39 22 23 Regions Visited 4 Branch Regions 2 Pre-discovered Areas 1 | . . . . 1 Known Exits Taken . | . . . . . Unknown Exits Taken 4 | 1 1 1 1 . Scrap Searched 1 | . . 1 . . Spaces Dug . | . . . . . Terrain Destroyed . | . . . . . Melee . | . . . . . Projectile . | . . . . . AOE . | . . . . . Terrain Rammed . | . . . . . Walls Destroyed . | . . . . . Machines Disabled . | . . . . . Actions | -11 -10 -10 -9 -9 --------- Run | Jun Mat Min Mat Min Total 459 | 39 74 66 152 128 Wait 9 | . . . . 9 Move 412 | 34 74 66 125 113 Hop . | . . . . . Pick Up 7 | 3 . . 2 2 Fast Attach 3 | . . . 1 2 Attach 3 | 2 . . 1 . Detach . | . . . . . Swap . | . . . . . Drop . | . . . . . Fire 21 | . . . 21 . Melee . | . . . . . Ram 4 | . . . 2 2 Kick . | . . . . . Crush . | . . . . . Escape Stasis . | . . . . . Rewire . | . . . . . Trap . | . . . . . Miscellaneous . | . . . . . Route ------- -11/Junkyard -10/Materials -10/Mines -9/Materials -9/Mines History --------- Turn | Location | Event 4 | -11/Junkyard | Discovered new exit (range 15) 23 | -11/Junkyard | Entered Materials 57 | -10/Materials | Discovered new exit (range 8) 61 | -10/Materials | Entered Mines 88 | -10/Mines | Discovered new exit (range 13) 95 | -10/Mines | Entered Materials 95 | -9/Materials | Evolved 2 slots: Propulsion x2 204 | -9/Materials | Discovered new exit (range 14) 211 | -9/Materials | Entered Mines 212 | -9/Mines | Assembled infested the area 212 | -9/Mines | Learned location of Storage (-9) 217 | -9/Mines | Assisted by a Guerilla fighting off Assembled 228 | -9/Mines | Joined a pair of Derelicts in attacking an 0b10 outpost 284 | -9/Mines | Self-destructed Last Messages --------------- coming from, and they're closing on this area, come on!" 00228_ A derelict emerges from the shadows: "We've had our eye on this brand new outpost for a little while, just waiting for an opportunity to strike. Need some help?" 00228_ Y-45 Defender destroyed. 00231_ Acquired Lgt. Treads. 00234_ 6I-WBE(g) destroyed. 00235_ Y-45 Defender heat short circuits Heat Sink. 00238_ Y-45 Defender destroyed. 00243_ Acquired Lgt. Treads. 00245_ Acquired Lgt. Armor Plating. 00247_ Acquired Propulsion Shielding. 00262_ Lgt. Treads destroyed. 00266_ as-33093 destroyed. 00267_ Acquired 4 matter. 00267_ Slammed into as-90527. 00267_ Shotgun broken. 00267_ Destabilizing: Short circuit. 00268_ Slammed into as-90527. 00282_ as-85608 destroyed. Map ----- +----------------------------------------------------+ | ??????##% ####?????????????????????????????? | | ????### = ##????????????????????????????? | | ????# ###??????????????????????????? | | ????# % ##?????????????????????????? | | ????### % ## #?????????????????????????? | | ??????# %#### #?????????????????????????? | | ??????##% ##??## ##?????????????????????????? | | ???????#% #????# #??????????????????????????? | | ???????#% #???## ##?????????????????????????? | | ???????#% #???# #?????????????????????????? | | ##?????# #???# #?????????????????????????? | | ####### #???# ##?????????????????????????? | | #???# " ##??????????????????????????? | | ####### #???# %##??????????????????????????? | | #?????# #???## ####???????????????????????? | | ##?????# #????## ##??????????????????????? | | #??????# #?????## #??????????????????????? | | #??????# #??????## #??????????????????????? | | ##??????# #???????## a ##??????????????????????? | | #?####### #????????## ##???????????????????????? | | ?##"! "## #####?????# ##????????????????????????? | | ?#""!!""# #?????# ##????????????????????????? | | ?#% * [%##### #?????# ##???????????????????????? | | ?##[![ ##???# #?????## #???????????????????????? | | ?###++####??# #??????## ##??????????????????????? | | ?# =%! #### #???????# @#??????????????????????? | | ?# #???????# #?????????????????????? | | ?# #### #???????## #?????????????????????? | | ?# ##??# #????????## ##?????????????????????? | | ?## ##???# #?????????###??????????????????????? | | ??######????# #??????????????????????????????????? | | ????????????# #??????????????????????????????????? | | ???????????? #??????????????????????????????????? | | ????????????###??????????????????????????????????? | | ?????????????????????????????????????????????????? | | ?????????????????????????????????????????????????? | | ?????????????????????????????????????????????????? | | ?????????????????????????????????????????????????? | | ?????????????????????????????????????????????????? | | ?????????????????????????????????????????????????? | | ?????????????????????????????????????????????????? | | ?????????????????????????????????????????????????? | | ?????????????????????????????????????????????????? | | ?????????????????????????????????????????????????? | | ?????????????????????????????????????????????????? | | ?????????????????????????????????????????????????? | | | | | | | | | +----------------------------------------------------+ Best States ------------- Heat Dissipation 28 Energy Generation 5 Energy Capacity 100 Matter Stores 300 Matter Capacity 300 Sight Range 16 Terrain Scan Density 10 Evasion (%) 50 Recoil Reduction 2 Item Schematics ----------------- None Robot Schematics ------------------ None Fabricated ------------ Nothing Alien Tech Used ----------------- None Achievements -------------- None Challenges ------------ None Game ------ Seed MomentumDefenseCharger Manual? 0 Play Time 00:04:34 Cumulative 155.4 hours Start 2023.04.28 @ 19:27:04 End 2023.04.28 @ 19:30:35 Sessions 1 Manual Loads 0 Difficulty Rogue Special Mode None Game No. 470 Rogue 470 Adventurer 0 Explorer 0 Win Type - Total 7 Types 6/0/0/1/0/0/0/0/0 Lore% 66 Gallery% 72 Achievement% 61 Wizard Run 0 Options --------- ASCII 0 Keyboard 0 Movement Numpad Keybinds 0 Fullscreen 1 Font 16/SmallcapsGlow Map View 75x55 Tactical HUD 1 Map Filters NONE Filters NONE Steam 1 RUN: 43cd8d8c-fca3-4e10-bd44-0bbfbb340b10